Cogmind - Beta 15 @@@ ROGUE MODE // 2025.06.16 @ 01:06:38 Player: Mindcool24 Result: Destroyed by G-47 Trooper with Particle Gun Performance ------------- Evolutions (2) 1000 Regions Visited (3) 600 Robots Destroyed (29) 145 Value Destroyed (756) 756 Prototype IDs (0) 0 Alien Tech Used (0) 0 Bonus (0) 0 TOTAL SCORE: 2501 Bonus ------- None Cogmind --------- Core Integrity 0/550 Matter 300/300 Energy 100/100 System Corruption 2% Temperature Cool (9) Movement Core (50) Location -8/Materials Parts ------- > --- POWER (2) -------- (None) > --- PROPULSION (3) --- (None) > --- UTILITY (3) ------ Visual Processing Unit > --- WEAPON (3) ------- (None) > --- INVENTORY (5) ---- Nuclear Core Armored Huge Wheel Light Armor Plating Peak State ------------ > --- POWER ------------ Ion Engine Ion Engine > --- PROPULSION ------- Improved Treads Armored Huge Wheel > --- UTILITY ---------- Improved Heat Sink Small Storage Unit Visual Processing Unit > --- WEAPON ----------- Beam Rifle EM Pulse Cannon Light Assault Rifle > --- INVENTORY -------- Improved Ion Engine Nuclear Core Nuclear Core Light Nuclear Core Improved Treads Cooling System Core Shielding Light Armor Plating [Rating: 25] Favorites ----------- Power Ion Engine Engine Ion Engine Power Core Nuclear Core Propulsion Light Treads Treads Light Treads Wheel Armored Huge Wheel Utility Small Storage Unit Device Improved Heat Sink Storage Small Storage Unit Processor Visual Processing Unit Protection Core Shielding Weapon Beam Rifle Energy Gun Beam Rifle Energy Cannon EM Pulse Cannon Ballistic Gun Light Assault Rifle Launcher Grenade Launcher Build | -11 -10 -9 -8 ------- Run | Yrd Mat Mat Mat Slots Evolved 4 | . . 2 2 Power 1 | . . 1 . Propulsion 1 | . . . 1 Utility 1 | . . . 1 Weapon 1 | . . 1 . Parts Attached 31 | 6 4 15 6 Power 6 | 1 . 4 1 Engine 5 | 1 . 4 . Core 1 | . . . 1 Reactor . | . . . . Propulsion 9 | 2 . 5 2 Treads 7 | 2 . 5 . Leg . | . . . . Wheel 2 | . . . 2 Hover . | . . . . Flight . | . . . . Utility 5 | 1 1 1 2 Device 2 | . 1 1 . Storage 1 | 1 . . . Processor 1 | . . . 1 Hackware . | . . . . Protection 1 | . . . 1 Artifact . | . . . . Weapon 11 | 2 3 5 1 Energy Gun 8 | 2 3 3 . Energy Cannon 1 | . . . 1 Ballistic Gun 1 | . . 1 . Ballistic Cannon . | . . . . Launcher 1 | . . 1 . Special Weapon . | . . . . Impact Weapon . | . . . . Slashing Weapon . | . . . . Piercing Weapon . | . . . . Special Melee Weapon . | . . . . Unidentified Prototypes . | . . . . Parts Lost 13 | . 2 2 9 Power 3 | . . 1 2 Propulsion 2 | . 1 . 1 Utility 3 | . . . 3 Weapon 5 | . 1 1 3 Highest Loss Streak 9 | . 2 1 9 To Critical Strikes . | . . . . Average Backups 5 | . 3 7 7 Power 2 | . 2 2 3 Propulsion . | . . . 1 Utility 1 | . . 1 2 Weapon 1 | . . 1 . Tool/Special . | . . . . Unused Backups 9 | . . 4 5 Power 5 | . . 1 4 Propulsion . | . . . . Utility 4 | . . 3 1 Weapon . | . . . . Tool/Special . | . . . . Average Slot Usage (%) 85 | . 83 88 79 Engine 16 | . 14 18 16 Treads 16 | . 18 17 12 Device 9 | . 8 11 8 Storage 11 | . 14 11 8 Processor 1 | . . . 9 Energy Gun 24 | . 27 28 7 Energy Cannon 1 | . . . 5 Ballistic Gun 2 | . . 2 8 Peak Build Rating 25 | 6 11 18 25 Average Rating 12 | 5 8 14 18 On Entrance 7 | . 6 11 14 Naked Turns . | . . . . Heaviest Build 27 | 13 17 27 26 Greatest Support 46 | 40 40 46 46 Greatest Overweight (x) 8 | . . 8 3 Average Overweight (x) . | . . . . Largest Inventory Capacity 8 | 8 8 8 8 Average Capacity 7 | 7 8 8 7 Most Carried 8 | 3 8 8 8 Average Carried 5 | 1 3 7 7 Final Capacity 8 | 8 8 8 5 Final Carried 8 | 1 8 7 4 Class Distribution -------------------- 40% | Mutant 36% | Gunner 12% | Scavenger-Skirmisher 10% | Scavenger-Mutant Dominant Class ---------------- Mutant | -10/Materials Gunner | -9/Materials Scavenger-Skirmisher | -8/Materials Resources | -11 -10 -9 -8 ----------- Run | Yrd Mat Mat Mat Matter Collected 647 | 225 55 255 112 Remotely . | . . . . Salvage Created 781 | . 251 436 94 Parts 53 | . 17 35 1 Haulers Intercepted . | . . . . Recyclers Shooed . | . . . . Parts Field Recycled . | . . . . Retrieved Matter . | . . . . Parts Self-Destructed . | . . . . Prevented . | . . . . Kills | -11 -10 -9 -8 ------- Run | Yrd Mat Mat Mat Combat Hostiles Destroyed 22 | . 6 15 1 Guns 21 | . 6 14 1 AOE 1 | . . 1 . Classes Destroyed 8 | . 1 7 . Worker 1 | . . 1 . Builder 1 | . . 1 . Mechanic 1 | . . 1 . Operator 1 | . . 1 . Watcher 3 | . . 2 1 Swarmer 7 | . . 7 . Grunt 13 | . 6 6 1 Sentry 2 | . . 2 . Best Kill Streak 8 | . 4 8 1 Combat Bots Only 7 | . 4 7 1 Max Kills in Single Turn 2 | . 2 2 1 Gunslinging 1 | . 1 1 . Exploded 1 | . . 1 . Melee . | . . . . Uniques/NPCs Destroyed . | . . . . Combat | -11 -10 -9 -8 -------- Run | Yrd Mat Mat Mat Hostile Shots Fired 213 | . 51 89 73 Missed 49 | . 14 20 15 Hits 164 | . 37 69 58 Melee 3 | . . . 3 Projectile 161 | . 37 69 55 Critical Strikes 7 | . 2 . 5 Actively Blocked 1 | . . . 1 Damage Taken 2732 | . 466 916 1350 Core 832 | . 76 198 558 Absorbed by Shields . | . . . . Redirected to Shielding 52 | . . . 52 Core Remaining (%) 73 | 100 69 50 . Volleys Fired 82 | . 21 53 8 Largest 3 | . 2 3 3 Hottest 186 | . 105 186 139 Shots Fired 174 | . 36 120 18 Gun 163 | . 36 115 12 Cannon 6 | . . . 6 Launcher 5 | . . 5 . Special . | . . . . Kinetic 13 | . . 5 8 Thermal 140 | . 26 110 4 Explosive 5 | . . 5 . Electromagnetic 16 | . 10 . 6 Robot Hit Streak 9 | . 9 7 5 Robot Miss Streak 10 | . 3 10 2 Penetration Max . | . . . . Secondary Targets 6 | . 1 5 . Max Gunslinging Chain 2 | . 1 2 . Shots Hit Robots 107 | . 25 70 12 Core Hits 73 | . 14 54 5 Critical Kills . | . . . . Critical Parts Destroyed . | . . . . Critical Strikes 3 | . . 3 . Burn 3 | . . 3 . Melee Attacks . | . . . . Impact . | . . . . Slashing . | . . . . Piercing . | . . . . Sneak Attacks . | . . . . Combat Hostiles . | . . . . Follow-up Attacks . | . . . . Damage Inflicted 1780 | . 321 1197 262 Guns 1315 | . 321 924 70 Cannons 166 | . . . 166 Explosions 273 | . . 273 . Melee . | . . . . Ramming 26 | . . . 26 Kinetic 78 | . . 22 56 Thermal 1243 | . 244 985 14 Explosive 190 | . . 190 . Electromagnetic 243 | . 77 . 166 Impact . | . . . . Slashing . | . . . . Piercing . | . . . . Highest Corruption 2 | . . . 2 Average Corruption 2 | . . . 2 Corruption Purged . | . . . . Corruption Blocked . | . . . . Effects 6 | . . . 6 Message Errors 2 | . . . 2 Matter Fused 2 | . . . 2 Parts Fused 1 | . . . 1 Alerts 1 | . . . 1 Overload Shots . | . . . . Overflow Damage 73 | . . 43 30 Projectiles 30 | . . . 30 Explosions 43 | . . 43 . Melee . | . . . . Knockbacks . | . . . . Impact . | . . . . Kinetic . | . . . . Secondary . | . . . . Self-Inflicted Damage 97 | . . 86 11 Shots 4 | . . 4 . Rammed 7 | . . . 7 Targets Rammed 7 | . . . 7 Kicked . | . . . . Crushed . | . . . . Highest Temperature 739 | . 318 739 75 Average Temperature 204 | . 136 244 24 Received Heat Transfer 945 | . 300 240 405 Effects 43 | . 2 41 . Shutdowns 12 | . . 12 . Energy Bleed 6 | . . 6 . Interference 7 | . 1 6 . Matter Decay 3 | . . 3 . Short Circuit 4 | . 1 3 . Damage (minor) 2 | . . 2 . Damage (major) 7 | . . 7 . Damage (core) 2 | . . 2 . Siege Activations . | . . . . Martial Activations . | . . . . Shielding Activations . | . . . . Robots Disrupted 1 | . . . 1 Combat Hostiles 1 | . . . 1 Robots Corrupted . | . . . . Combat Hostiles . | . . . . Parts Fried . | . . . . Impact Corruptions . | . . . . Robots Melted . | . . . . Combat Hostiles . | . . . . Parts Melted 3 | . 1 2 . Heat Transferred 2656 | . 548 2071 37 Parts Sabotaged . | . . . . Parts Stolen . | . . . . Parts Stripped . | . . . . Power Chain Reactions . | . . . . Alert | -11 -10 -9 -8 ------- Run | Yrd Mat Mat Mat Maximum Alert Level 1 | . . 1 . Low Security (%) 96 | 100 100 92 100 Level 1 3 | . . 7 . Level 2 . | . . . . Level 3 . | . . . . Level 4 . | . . . . Level 5 . | . . . . High Security . | . . . . Max Security . | . . . . Peak Influence 223 | . 60 223 76 Initial 76 | . . . 76 Average 47 | . 15 81 24 Influence Increases 610 | . 150 433 27 Destroy 0b10 Robot/C 440 | . 120 300 20 Destroy 0b10 Robot/NC 35 | . . 30 5 Destroy Leader 96 | . 30 64 2 Disable Machine 15 | . . 15 . Destroy Structure 24 | . . 24 . Influence Decreases 610 | . 150 252 208 Entered New Map 105 | . . . 105 Time Decay 468 | . 130 242 96 Lost Part 37 | . 20 10 7 Squads Dispatched 5 | . 2 1 2 Investigation 1 | . 1 . . Extermination . | . . . . Reinforcement 4 | . 1 1 2 Assault . | . . . . Garrison . | . . . . Intercept . | . . . . Searches Triggered . | . . . . Construction Impeded 1 | . . 1 . Haulers Reinforced . | . . . . Active Scanning Responses . | . . . . Cargo Convoy Interrupts . | . . . . Stealth | -11 -10 -9 -8 --------- Run | Yrd Mat Mat Mat Distress Signals 1 | . . 1 . Communications Jammed . | . . . . Distress Signals . | . . . . Times Spotted 40 | . 7 24 9 Peak Tracking Total 9 | . 4 7 9 Tactical Retreats . | . . . . Traps | -11 -10 -9 -8 ------- Run | Yrd Mat Mat Mat Traps Triggered 2 | . 1 . 1 Indirectly . | . . . . Trap Hack Attempts . | . . . . Triggered . | . . . . Disarmed . | . . . . Reprogrammed . | . . . . Reused . | . . . . Traps Extracted . | . . . . Installed . | . . . . Triggered . | . . . . Machines | -11 -10 -9 -8 ---------- Run | Yrd Mat Mat Mat Machines Disabled 1 | . . 1 . Max in Single Turn 1 | . . 1 . Machines Repaired . | . . . . Machines Dismantled . | . . . . Machines Sabotaged . | . . . . Overloaded Fab Kills . | . . . . Hacking | -11 -10 -9 -8 --------- Run | Yrd Mat Mat Mat Machines Accessed . | . . . . Terminals . | . . . . Fabricators . | . . . . Repair Stations . | . . . . Recycling Units . | . . . . Scanalyzers . | . . . . Garrison Access . | . . . . Total Hacks . | . . . . Successful . | . . . . Failed . | . . . . Catastrophic . | . . . . Database Lockouts . | . . . . Manual . | . . . . Terminals . | . . . . Fabricators . | . . . . Repair Stations . | . . . . Recycling Units . | . . . . Scanalyzers . | . . . . Garrison Access . | . . . . Terminal Hacks . | . . . . Fabricator Hacks . | . . . . Repair Station Hacks . | . . . . Recycling Unit Hacks . | . . . . Scanalyzer . | . . . . Garrison Access Hacks . | . . . . Unauthorized Hacks . | . . . . Terminals . | . . . . Fabricators . | . . . . Repair Stations . | . . . . Recycling Units . | . . . . Scanalyzers . | . . . . Garrison Access . | . . . . Data Cores Recovered 1 | . . 1 . Used . | . . . . Hacking Detections . | . . . . Full Trace Events . | . . . . Feedback Events . | . . . . Feedback Blocked . | . . . . Robot Schematics Acquired . | . . . . Robots Built . | . . . . Authchips . | . . . . Time . | . . . . Total Robot Build Rating . | . . . . Part Schematics Acquired . | . . . . Parts Built . | . . . . Authchips . | . . . . Time . | . . . . Total Part Build Rating . | . . . . Parts Repaired . | . . . . Time . | . . . . Parts Recycled . | . . . . Recycled Matter . | . . . . Retrieved Matter . | . . . . Retrieved Components . | . . . . Parts Scanalyzed . | . . . . Part Schematics Acquired . | . . . . Parts Damaged . | . . . . Bothacking | -11 -10 -9 -8 ------------ Run | Yrd Mat Mat Mat Used RIF Installer . | . . . . Robots Hacked . | . . . . Non-combat . | . . . . Combat . | . . . . Robot Hacks Applied . | . . . . Relay Couplers Released . | . . . . Fabnet Peak Effective % . | . . . . Robots Rewired . | . . . . Allies Hacked . | . . . . Hacks Repelled . | . . . . Allies | -11 -10 -9 -8 -------- Run | Yrd Mat Mat Mat Total Allies . | . . . . Largest Group . | . . . . Highest-Rated Group . | . . . . Highest-Rated Ally . | . . . . Total Orders . | . . . . Ally Attacks . | . . . . Total Damage . | . . . . Kills . | . . . . Allies Corrupted . | . . . . Allies Melted . | . . . . Intel | -11 -10 -9 -8 ------- Run | Yrd Mat Mat Mat Active Infowar (turns) 281 | . . . 281 Optics 281 | . . . 281 Robot Analysis Total . | . . . . Derelict Logs Recovered . | . . . . Drone Launches . | . . . . Drone Recoveries . | . . . . Exploration | -11 -10 -9 -8 ------------- Run | Yrd Mat Mat Mat Turns Passed 1649 | 98 471 782 298 Spaces Moved 781 | 57 248 318 158 Core 10 | 5 . 4 1 Treads 716 | 52 248 314 102 Legs . | . . . . Wheels 55 | . . . 55 Hover . | . . . . Flight . | . . . . Fastest Speed 50 | 50 160 160 100 Average Speed 160 | 150 160 174 139 Slowest Speed 450 | 160 160 450 200 Overloaded Moves . | . . . . Propulsion Burnouts . | . . . . Robots Hopped . | . . . . Potential Cave-ins . | . . . . Cave-ins Triggered . | . . . . Exploration Rate (%) 24 | 4 46 28 18 Regions Visited 3 Branch Regions . Pre-discovered Areas . | . . . . Known Exits Taken . | . . . . Unknown Exits Taken 3 | 1 1 1 . Scrap Searched . | . . . . Spaces Dug . | . . . . Terrain Destroyed 29 | . . 29 . Melee . | . . . . Projectile . | . . . . AOE 29 | . . 29 . Terrain Rammed . | . . . . Walls Destroyed . | . . . . Machines Disabled . | . . . . Actions | -11 -10 -9 -8 --------- Run | Yrd Mat Mat Mat Total 1040 | 69 288 457 226 Wait 70 | . 2 34 34 Move 778 | 56 247 317 158 Hop . | . . . . Pick Up 42 | 7 11 19 5 Fast Attach 2 | . . . 2 Attach 22 | 6 3 9 4 Detach 5 | . 1 2 2 Swap 8 | . 1 7 . Drop 24 | . 2 16 6 Fire 82 | . 21 53 8 Melee . | . . . . Ram 7 | . . . 7 Kick . | . . . . Crush . | . . . . Escape Stasis . | . . . . Rewire . | . . . . Trap . | . . . . Miscellaneous . | . . . . Route ------- -11/Scrapyard -10/Materials -9/Materials -8/Materials History --------- Turn | Location | Event 36 | -11/Scrapyard | Discovered new exit (range 12) 99 | -11/Scrapyard | Entered Materials 306 | -10/Materials | Build established: Mutant 560 | -10/Materials | Discovered new exit (range 6) 570 | -10/Materials | Entered another Materials area 570 | -9/Materials | Evolved 2 slots: Power x1, Weapon x1 859 | -9/Materials | Build established: Gunner 1001 | -9/Materials | Destroyed 7 combat bots 1306 | -9/Materials | Discovered new exit (range 16) 1352 | -9/Materials | Entered another Materials area 1352 | -8/Materials | Evolved 2 slots: Propulsion x1, Utility x1 1641 | -8/Materials | Core integrity fell below 50% 1648 | -8/Materials | Core integrity fell below 20% 1650 | -8/Materials | Destroyed by G-47 Trooper with Particle Gun Last Messages --------------- 01634_ Arm. Huge Wheel destroyed. 01634_ Critical hit (Blast). 01636_ K-01 Serf cleans the Terminal. 01636_ Penetrated by Slug. 01638_ Ion Engine destroyed. 01638_ Penetrated by Slug. 01638_ L-31 Rogue destroyed. 01638_ Ion Engine destroyed. 01638_ Knocked back. 01639_ Acquired 10 matter. 01639_ K-01 Serf cleans the Terminal. 01640_ Acquired 8 matter. 01642_ K-01 Serf cleans the Terminal. 01644_ K-01 Serf collects debris. 01644_ Terminal disabled. 01645_ Critical hit (Burn: +37). 01645_ K-01 Serf collects debris. 01647_ Penetrated by Slug. 01647_ Core Shielding destroyed. 01647_ K-01 Serf collects debris. Map ----- +----------------------------------------------------+ | ! **! = =#???????? | | *!!#???????? | | !!#???????? | | ########+##################### #######???????? | | #??????# #???????# # #?????????????? | | #??????#*" #???????# + #####?????????? | | #??????# T #???????# # ==#?????????? | | #??????# " #???????# ""??# ==#?????????? | | +??????# !#???????# ????# **#?????????? | | #??????# #???????#??????# **#?????????? | | ### #??????########??????????????# !!#?????????? | | ??# #????????????????????????????# !!#?????????? | | ??# #????????????????????????????# ######????????? | | ??? #????????????????????????????# # #????????? | | ??? ??????????????????????######## # #????????? | | ???+??????????????????????# ## # #????????? | | ??????????????????????????# """ ## # #????????? | | ??????????????????????????# """ ## # #????????? | | ??????????????????????????# """ + + #????????? | | ??????????????????????????# """ ## # #????????? | | ??????????????????????????# """ ## # #????????? | | ????????????????????####### ## # #????????? | | ????????????????????# ###+#### ######????????? | | ????????????????????# **g ???? | | ????????????????????# k % gg ???? | | ????????????????????# kg@=!=% ???? | | ????????????????????# ug ##################?????? | | ????????????????????###/###??????????????????????? | | ????????????????????? ?????????????????????????? | | ???????????????????# ??????????????????????????? | | ???????????????????# ??????????????????????????? | | ???????????????????# ???????????????????????????? | | ???????????????????# ????????????????????????????? | | ???????????????????# ????????????????????????????? | | ???????????????????#?????????????????????????????? | | ?????????????????????????????????????????????????? | | ?????????????????????????????????????????????????? | | ?????????????????????????????????????????????????? | | ?????????????????????????????????????????????????? | | ?????????????????????????????????????????????????? | | ?????????????????????????????????????????????????? | | ?????????????????????????????????????????????????? | | ?????????????????????????????????????????????????? | | ?????????????????????????????????????????????????? | | ?????????????????????????????????????????????????? | | ?????????????????????????????????????????????????? | | ?????????????????????????????????????????????????? | | ?????????????????????????????????????????????????? | | ?????????????????????????????????????????????????? | | ?????????????????????????????????????????????????? | +----------------------------------------------------+ Best States ------------- Heat Dissipation 45 Energy Generation 17 Energy Capacity 415 Matter Stores 300 Matter Capacity 300 Sight Range 18 Terrain Scan Density 10 Core Shielding 20 Evasion (%) 40 Recoil Reduction 6 Item Schematics ----------------- None Robot Schematics ------------------ None Fabricated ------------ Nothing Repaired ---------- Nothing Alien Tech Used ----------------- None Achievements -------------- Fist Fight Challenges ------------ None Game ------ Seed IntegrityChromionThrower Manual? 0 Play Time 00:15:24 Cumulative 6.8 hours Start 2025.06.16 @ 00:54:20 End 2025.06.16 @ 01:06:38 Sessions 1 Manual Loads 0 Difficulty Rogue Special Mode None Game No. 19 Rogue 8 Adventurer 11 Explorer 0 Win Type - Total 0 Types 0/0/0/0/0/0/0/0/0/0 Lore% 2 Gallery% 14 Achievement% 13 Wizard Run 0 Options --------- Layout 1 ASCII 0 Keyboard 1 Movement Vi Keybinds 0 Fullscreen 1 Font 24/Smallcaps Map View 76x35 Zoom Use 0% Tactical HUD 1 Map Filters NONE Filters NONE Steam 1 RUN: 59dcdbb5-2a9b-48cc-a6d1-9db2ffc7aae0